lending/lending_fUSD_20250429
["ID","MTS","AMOUNT","RATE_DAILY","PERIOD"]
[359328845,1745928642227,-470.0,0.00027519,2]
[359328846,1745928642239,-536.3,0.00027519,2]
[359328847,1745928642250,-470.0,0.00027519,2]
[359328848,1745928642261,-803.47,0.00027519,2]
[359328849,1745928642271,-470.0,0.0002752,2]
[359328850,1745928642281,-470.0,0.0002752,2]
[359328851,1745928642291,-544.19899845,0.0002752,2]
[359328852,1745928642301,-470.0,0.0002752,2]
[359328853,1745928642311,-470.0,0.0002752,2]
[359328854,1745928642322,-533.32,0.0002752,2]
[359328855,1745928642333,-470.0,0.0002752,2]
[359328856,1745928642342,-388.54451128,0.0002752,2]
[359328857,1745928642353,-470.0,0.0002752,2]
[359328858,1745928642363,-470.0,0.0002752,2]
[359328859,1745928642372,-570.07,0.0002752,2]
[359328860,1745928642383,-474.75565821,0.0002752,2]
[359328861,1745928642392,-470.0,0.0002752,2]
[359328862,1745928642402,-330.0,0.0002752,2]
[359328863,1745928642413,-547.67,0.0002752,2]
[359328864,1745928642423,-601.58,0.0002752,2]
[359328865,1745928642434,-470.0,0.0002752,2]
[359328866,1745928642443,-470.0,0.0002752,2]
[359328867,1745928642452,-470.0,0.0002752,2]
[359328868,1745928642463,-890.86,0.0002752,2]
[359328869,1745928642472,-470.0,0.0002752,2]
[359328870,1745928642482,-470.0,0.0002752,2]
[359328871,1745928642491,-470.0,0.0002752,2]
[359328872,1745928642501,-470.0,0.0002752,2]
[359328873,1745928642510,-470.0,0.0002752,2]
[359328874,1745928642520,-250.0,0.0002752,2]
[359328875,1745928642530,-212.19690958,0.0002752,2]
[359328876,1745928642539,-470.0,0.0002752,2]
[359328877,1745928642549,-470.0,0.0002752,2]
[359328878,1745928642558,-470.0,0.0002752,2]
[359328879,1745928642568,-470.0,0.0002752,2]
[359328880,1745928642578,-470.0,0.0002752,2]
[359328881,1745928642587,-470.0,0.0002752,2]
[359328882,1745928642596,-470.0,0.0002752,2]
[359328883,1745928642605,-548.27454384,0.0002752,2]
[359328884,1745928642615,-470.0,0.0002752,2]
[359328885,1745928642624,-400.0,0.0002752,2]
[359328886,1745928642634,-470.0,0.0002752,2]
[359328887,1745928642644,-176.57582129,0.0002752,2]
[359328888,1745928642653,-470.0,0.0002752,2]
[359328889,1745928642663,-470.0,0.0002752,2]
[359328890,1745928642672,-470.0,0.0002752,2]
[359328891,1745928642682,-416.95132453,0.0002752,2]
[359328892,1745928642692,-470.0,0.0002752,2]
[359328893,1745928642702,-336.21434332,0.0002752,2]
[359328894,1745928642713,-475.36,0.0002752,2]
[359328895,1745928642724,-470.0,0.0002752,2]
[359328896,1745928642736,-470.0,0.0002752,2]
[359328897,1745928642746,-470.0,0.0002752,2]
[359328898,1745928642756,-470.0,0.0002752,2]
[359328899,1745928642766,-470.0,0.0002752,2]
[359328900,1745928642776,-470.0,0.0002752,2]
[359328901,1745928642786,-470.0,0.0002752,2]
[359328902,1745928642795,-470.0,0.0002752,2]
[359328903,1745928642805,-470.0,0.0002752,2]
[359328904,1745928642814,-470.0,0.0002752,2]
[359328905,1745928642824,-678.16,0.0002752,2]
[359328906,1745928642833,-495.73,0.0002752,2]
[359328907,1745928642843,-580.52,0.0002752,2]
[359328908,1745928642852,-470.0,0.0002752,2]
[359328909,1745928642863,-253.71047882,0.0002752,2]
[359328910,1745928642872,-532.38,0.0002752,2]
[359328911,1745928642882,-338.32841734,0.0002752,2]
[359328912,1745928642891,-470.0,0.0002752,2]
[359328913,1745928642901,-400.0,0.0002752,2]
[359328914,1745928642910,-470.0,0.0002752,2]
[359328915,1745928642919,-470.0,0.0002752,2]
[359328916,1745928642930,-470.0,0.0002752,2]
[359328917,1745928642940,-470.0,0.0002752,2]
[359328918,1745928642950,-470.0,0.0002752,2]
[359328919,1745928642960,-470.0,0.0002752,2]
[359328920,1745928642970,-483.45,0.0002752,2]
[359328921,1745928642980,-470.0,0.0002752,2]
[359328922,1745928642989,-470.0,0.0002752,2]
[359328923,1745928642999,-470.0,0.0002752,2]
[359328925,1745928643009,-470.0,0.0002752,2]
[359328927,1745928643018,-470.0,0.0002752,2]
[359328929,1745928643032,-470.1013043,0.0002752,2]
[359328932,1745928643042,-470.0,0.0002752,2]
[359328934,1745928643052,-470.0,0.0002752,2]
[359328935,1745928643062,-470.0,0.0002752,2]
[359328937,1745928643073,-504.33782813,0.0002752,2]
[359328939,1745928643083,-555.12,0.0002752,2]
[359328940,1745928643093,-603.00903675,0.0002752,2]
[359328941,1745928643105,-470.0,0.0002752,2]
[359328942,1745928643114,-470.0,0.0002752,2]
[359328943,1745928643124,-470.0,0.0002752,2]
[359328944,1745928643134,-470.0,0.0002752,2]
[359328945,1745928643143,-595.54,0.0002752,2]
[359328946,1745928643153,-470.0,0.0002752,2]
[359328947,1745928643163,-470.0,0.0002752,2]
[359328948,1745928643172,-470.0,0.0002752,2]
[359328949,1745928643183,-470.0,0.0002752,2]
[359328950,1745928643193,-470.0,0.0002752,2]
[359328951,1745928643203,-470.0,0.0002752,2]
[359328952,1745928643212,-571.99,0.0002752,2]
[359328953,1745928643223,-552.87,0.0002752,2]
[359328954,1745928643232,-594.83,0.0002752,2]
[359328955,1745928643243,-810.67,0.0002752,2]
[359328956,1745928643252,-470.0,0.0002752,2]
[359328957,1745928643263,-470.0,0.0002752,2]
[359328958,1745928643273,-470.0,0.0002752,2]
[359328959,1745928643282,-330.57855105,0.0002752,2]
[359328960,1745928643293,-470.0,0.0002752,2]
[359328961,1745928643303,-635.59,0.0002752,2]
[359328962,1745928643312,-688.61,0.0002752,2]
[359328963,1745928643322,-470.0,0.0002752,2]
[359328964,1745928643331,-470.0,0.0002752,2]
[359328965,1745928643341,-511.56253241,0.0002752,2]
[359328966,1745928643350,-470.0,0.0002752,2]
[359328967,1745928643359,-470.0,0.0002752,2]
[359328968,1745928643370,-507.61542298,0.0002752,2]
[359328969,1745928643379,-470.0,0.0002752,2]
[359328970,1745928643389,-470.0,0.0002752,2]
[359328971,1745928643398,-551.78469159,0.0002752,2]
[359328972,1745928643408,-470.0,0.0002752,2]
[359328973,1745928643417,-470.0,0.0002752,2]
[359328974,1745928643427,-470.0,0.0002752,2]
[359328975,1745928643436,-561.25875774,0.0002752,2]
[359328976,1745928643445,-599.67,0.0002752,2]
[359328977,1745928643455,-470.0,0.0002752,2]
[359328978,1745928643465,-560.84347596,0.0002752,2]
[359328979,1745928643474,-513.13300052,0.0002752,2]
[359328980,1745928643485,-470.0,0.0002752,2]
[359328981,1745928643494,-470.0,0.0002752,2]
[359328982,1745928643503,-470.0,0.0002752,2]
[359328983,1745928643513,-554.85,0.0002752,2]
[359328985,1745928643522,-470.0,0.0002752,2]
[359328986,1745928643532,-583.24,0.0002752,2]
[359328987,1745928643542,-470.0,0.0002752,2]
[359328988,1745928643552,-470.0,0.0002752,2]
[359328989,1745928643562,-470.0,0.0002752,2]
[359328991,1745928643571,-936.85,0.0002752,2]
[359328993,1745928643580,-470.0,0.0002752,2]
[359328995,1745928643590,-470.0,0.0002752,2]
[359328997,1745928643599,-470.0,0.0002752,2]
[359328999,1745928643610,-470.0,0.0002752,2]
[359329001,1745928643619,-470.0,0.0002752,2]
[359329003,1745928643628,-689.49918464,0.0002752,2]
[359329005,1745928643639,-400.0,0.0002752,2]
[359329007,1745928643648,-500.78381634,0.0002752,2]
[359329009,1745928643657,-506.07,0.0002752,2]
[359329011,1745928643666,-470.0,0.0002752,2]
[359329013,1745928643675,-401.01637181,0.0002752,2]
[359329015,1745928643685,-470.0,0.0002752,2]
[359329017,1745928643694,-470.0,0.0002752,2]
[359329019,1745928643703,-470.0,0.0002752,2]
[359329021,1745928643713,-470.0,0.0002752,2]
[359329023,1745928643721,-470.0,0.0002752,2]
[359329025,1745928643731,-470.0,0.0002752,2]
[359329027,1745928643740,-470.0,0.0002752,2]
[359329029,1745928643749,-470.0,0.0002752,2]
[359329031,1745928643758,-470.19,0.0002752,2]
[359329033,1745928643768,-559.96,0.0002752,2]
[359329035,1745928643776,-470.0,0.0002752,2]
[359329037,1745928643786,-470.0,0.0002752,2]
[359329039,1745928643795,-470.0,0.0002752,2]
[359329041,1745928643805,-470.0,0.0002752,2]
[359329043,1745928643814,-528.09,0.0002752,2]
[359329045,1745928643824,-470.0,0.0002752,2]
[359329047,1745928643834,-2013.75,0.0002752,2]
[359329049,1745928643843,-470.0,0.0002752,2]
[359329051,1745928643852,-470.0,0.0002752,2]
[359329053,1745928643862,-470.0,0.0002752,2]
[359329055,1745928643872,-470.0,0.0002752,2]
[359329057,1745928643882,-470.0,0.0002752,2]
[359329059,1745928643892,-470.0,0.0002752,2]
[359329062,1745928643902,-470.0,0.0002752,2]
[359329064,1745928643911,-470.0,0.0002752,2]
[359329065,1745928643921,-470.0,0.0002752,2]
[359329067,1745928643931,-470.0,0.0002752,2]
[359329069,1745928643940,-470.0,0.0002752,2]
[359329071,1745928643949,-470.0,0.0002752,2]
[359329074,1745928643959,-470.0,0.0002752,2]
[359329076,1745928643969,-470.0,0.0002752,2]
[359329078,1745928643978,-470.0,0.0002752,2]
[359329080,1745928643987,-470.0,0.0002752,2]
[359329082,1745928643997,-470.0,0.0002752,2]
[359329084,1745928644008,-661.45,0.0002752,2]
[359329086,1745928644017,-470.0,0.0002752,2]
[359329088,1745928644027,-470.0,0.0002752,2]
[359329090,1745928644039,-470.0,0.0002752,2]
[359329092,1745928644048,-470.0,0.0002752,2]
[359329094,1745928644058,-505.68321696,0.0002752,2]
[359329096,1745928644067,-470.0,0.0002752,2]
[359329098,1745928644078,-860.24,0.0002752,2]
[359329100,1745928644088,-404.24354656,0.0002752,2]
[359329102,1745928644097,-1510.32,0.0002752,2]
[359329104,1745928644107,-470.0,0.0002752,2]
[359329106,1745928644117,-1656.03,0.0002752,2]
[359329108,1745928644126,-470.0,0.0002752,2]
[359329110,1745928644136,-470.0,0.0002752,2]
[359329112,1745928644145,-470.0,0.0002752,2]
[359329114,1745928644155,-470.0,0.0002752,2]
[359329116,1745928644164,-470.0,0.0002752,2]
[359329118,1745928644173,-470.0,0.0002752,2]
[359329120,1745928644182,-663.92,0.0002752,2]
[359329122,1745928644192,-470.0,0.0002752,2]
[359329124,1745928644201,-495.27,0.0002752,2]
[359329125,1745928644210,-470.0,0.0002752,2]
[359329127,1745928644219,-807.18,0.0002752,2]
[359329128,1745928644228,-470.0,0.0002752,2]
[359329129,1745928644238,-470.0,0.0002752,2]
[359329130,1745928644247,-497.58,0.0002752,2]
[359329131,1745928644256,-470.0,0.0002752,2]
[359329132,1745928644266,-470.0,0.0002752,2]
[359329133,1745928644275,-470.0,0.0002752,2]
[359329134,1745928644284,-470.0,0.0002752,2]
[359329135,1745928644294,-470.0,0.0002752,2]
[359329136,1745928644303,-470.0,0.0002752,2]
[359329137,1745928644312,-470.0,0.0002752,2]
[359329138,1745928644324,-470.0,0.0002752,2]
[359329139,1745928644333,-470.0,0.0002752,2]
[359329140,1745928644343,-470.0,0.0002752,2]
[359329141,1745928644352,-470.0,0.0002752,2]
[359329142,1745928644361,-470.0,0.0002752,2]
[359329143,1745928644371,-470.0,0.0002752,2]
[359329144,1745928644380,-470.0,0.0002752,2]
[359329145,1745928644390,-470.0,0.0002752,2]
[359329146,1745928644399,-691.5,0.0002752,2]
[359329147,1745928644599,-470.0,0.0002752,2]
[359329148,1745928644609,-470.0,0.0002752,2]
[359329149,1745928644618,-470.0,0.0002752,2]
[359329150,1745928644627,-470.0,0.0002752,2]
[359329151,1745928644636,-470.0,0.0002752,2]
[359329152,1745928644646,-470.0,0.0002752,2]
[359329153,1745928644655,-470.0,0.0002752,2]
[359329154,1745928644663,-470.0,0.0002752,2]
[359329155,1745928644672,-470.0,0.0002752,2]
[359329156,1745928644681,-470.0,0.0002752,2]
[359329157,1745928644690,-470.0,0.0002752,2]
[359329158,1745928644699,-470.0,0.0002752,2]
[359329159,1745928644708,-482.15,0.0002752,2]
[359329160,1745928644717,-470.0,0.0002752,2]
[359329161,1745928644726,-6918.84,0.0002752,2]
[359329162,1745928644736,-538.07859182,0.0002752,2]
[359329163,1745928644745,-470.0,0.0002752,2]
[359329164,1745928644754,-470.0,0.0002752,2]
[359329165,1745928644764,-396.40512722,0.0002752,2]
[359329166,1745928644773,-470.0,0.0002752,2]
[359329167,1745928644782,-470.0,0.0002752,2]
[359329168,1745928644791,-470.0,0.0002752,2]
[359329169,1745928644801,-470.0,0.0002752,2]
[359329170,1745928644810,-1109.1,0.0002752,2]
[359329171,1745928644819,-470.0,0.0002752,2]
[359329172,1745928644828,-470.0,0.0002752,2]
[359329173,1745928644838,-470.0,0.0002752,2]
[359329174,1745928644847,-470.0,0.0002752,2]
[359329175,1745928644857,-151.0,0.0002752,7]
[359329176,1745928644866,-470.0,0.0002752,2]
[359329177,1745928644875,-470.0,0.0002752,2]
[359329178,1745928644884,-470.0,0.0002752,2]
[359329179,1745928644894,-470.0,0.0002752,2]
[359329180,1745928644903,-470.0,0.0002752,2]
[359329181,1745928644912,-470.0,0.0002752,2]
[359329182,1745928644921,-470.0,0.0002752,2]
[359329183,1745928644931,-470.0,0.0002752,2]
[359329184,1745928644940,-546.81,0.0002752,2]
[359329185,1745928644950,-470.0,0.0002752,2]
[359329186,1745928644959,-470.0,0.0002752,2]
[359329187,1745928644969,-405.20056399,0.0002752,2]
[359329188,1745928644978,-470.0,0.0002752,2]
[359329189,1745928644987,-470.0,0.0002752,2]
[359329190,1745928644996,-540.44,0.0002752,2]
[359329191,1745928645006,-640.0,0.0002752,2]
[359329192,1745928645016,-470.0,0.0002752,2]
[359329193,1745928645025,-470.0,0.0002752,2]
[359329194,1745928645038,-470.0,0.0002752,2]
[359329195,1745928645048,-470.0,0.0002752,2]
[359329196,1745928645057,-470.0,0.0002752,2]
[359329197,1745928645066,-470.0,0.0002752,2]
[359329198,1745928645075,-470.0,0.0002752,2]
[359329199,1745928645085,-470.0,0.0002752,2]
[359329200,1745928645094,-5564.74,0.0002752,2]
[359329201,1745928645103,-540.85,0.0002752,2]
[359329202,1745928645114,-470.0,0.0002752,2]
[359329203,1745928645124,-475.92,0.0002752,2]
[359329204,1745928645134,-486.28,0.0002752,2]
[359329205,1745928645143,-484.98,0.0002752,2]
[359329206,1745928645152,-470.0,0.0002752,2]
[359329207,1745928645161,-470.0,0.0002752,2]
[359329208,1745928645170,-470.0,0.0002752,2]
[359329209,1745928645179,-470.0,0.0002752,2]
[359329210,1745928645189,-470.0,0.0002752,2]
[359329211,1745928645201,-470.0,0.0002752,2]
[359329212,1745928645210,-17081.5153517,0.00027521,2]
[359329213,1745928645220,-534.77300255,0.00027521,2]
[359329214,1745928645229,-470.0,0.00027521,2]
[359329215,1745928645239,-470.0,0.00027521,2]
[359329216,1745928645248,-470.0,0.00027521,2]
[359329217,1745928645258,-470.0,0.00027521,2]
[359329218,1745928645267,-470.0,0.00027521,2]
[359329219,1745928645277,-470.0,0.00027521,2]
[359329220,1745928645286,-579.49,0.00027521,2]
[359329221,1745928645295,-508.86,0.00027521,2]
[359329222,1745928645304,-470.0,0.00027521,2]
[359329223,1745928645313,-470.0,0.00027521,2]
[359329224,1745928645322,-470.0,0.00027521,2]
[359329225,1745928645331,-470.0,0.00027521,2]
[359329226,1745928645341,-475.82,0.00027521,2]
[359329227,1745928645350,-470.0,0.00027521,2]
[359329228,1745928645360,-470.0,0.00027521,2]
[359329229,1745928645369,-470.0,0.00027521,2]
[359329230,1745928645378,-532.94,0.00027521,2]
[359329231,1745928645387,-470.0,0.00027521,2]
[359329232,1745928645397,-470.0,0.00027521,2]
[359329233,1745928645406,-470.0,0.00027521,2]
[359329234,1745928645415,-470.0,0.00027521,2]
[359329235,1745928645424,-470.0,0.00027521,2]
[359329236,1745928645434,-470.0,0.00027521,2]
[359329237,1745928645443,-470.0,0.00027521,2]
[359329238,1745928645453,-470.0,0.00027521,2]
[359329239,1745928645463,-470.0,0.00027521,2]
[359329240,1745928645472,-470.0,0.00027521,2]
[359329241,1745928645483,-400.0,0.00027521,2]
[359329242,1745928645492,-470.0,0.00027521,2]
[359329243,1745928645501,-470.0,0.00027521,2]
[359329244,1745928645510,-470.0,0.00027521,2]
[359329245,1745928645520,-470.0,0.00027521,2]
[359329246,1745928645530,-470.0,0.00027521,2]
[359329247,1745928645539,-470.0,0.00027521,2]
[359329248,1745928645549,-470.0,0.00027521,2]
[359329250,1745928645558,-470.0,0.00027521,2]
[359329251,1745928645567,-470.0,0.00027521,2]
[359329252,1745928645576,-470.0,0.00027521,2]
[359329253,1745928645586,-470.0,0.00027521,2]
[359329254,1745928645595,-470.0,0.00027521,2]
[359329255,1745928645604,-470.0,0.00027521,2]
[359329256,1745928645613,-470.0,0.00027521,2]
[359329257,1745928645622,-777.17,0.00027521,2]
[359329258,1745928645631,-470.0,0.00027521,2]
[359329259,1745928645641,-470.0,0.00027521,2]
[359329260,1745928645650,-470.0,0.00027521,2]
[359329261,1745928645659,-470.0,0.00027521,2]
[359329262,1745928645669,-470.0,0.00027521,2]
[359329263,1745928645678,-470.0,0.00027521,2]
[359329264,1745928645688,-470.0,0.00027521,2]
[359329265,1745928645697,-470.0,0.00027521,2]
[359329266,1745928645707,-1440.0,0.00027521,2]
[359329267,1745928645716,-470.0,0.00027521,2]
[359329268,1745928645725,-470.0,0.00027521,2]
[359329269,1745928645735,-470.0,0.00027521,2]
[359329270,1745928645746,-470.0,0.00027521,2]
[359329271,1745928645755,-470.0,0.00027521,2]
[359329272,1745928645765,-470.0,0.00027521,2]
[359329273,1745928645774,-470.0,0.00027521,2]
[359329274,1745928645784,-470.0,0.00027521,2]
[359329275,1745928645794,-470.0,0.00027521,2]
[359329276,1745928645803,-1024.94,0.00027521,2]
[359329277,1745928645814,-470.0,0.00027521,2]
[359329278,1745928645824,-470.0,0.00027521,2]
[359329279,1745928645834,-470.0,0.00027521,2]
[359329280,1745928645845,-3525.01,0.00027521,2]
[359329281,1745928645854,-470.0,0.00027521,2]
[359329282,1745928645864,-151.0,0.00027521,7]
[359329283,1745928645874,-470.0,0.00027521,2]
[359329284,1745928645884,-470.0,0.00027521,2]
[359329285,1745928645894,-470.0,0.00027521,2]
[359329286,1745928645903,-151.0,0.00027521,7]
[359329287,1745928645912,-470.0,0.00027521,2]
[359329288,1745928645922,-470.0,0.00027521,2]
[359329289,1745928645931,-1340.99,0.00027521,2]
[359329290,1745928645941,-151.0,0.00027521,7]
[359329291,1745928645950,-151.0,0.00027521,7]
[359329292,1745928645960,-470.0,0.00027521,2]
[359329293,1745928645969,-478.93,0.00027521,2]
[359329294,1745928645979,-470.0,0.00027521,2]
[359329295,1745928645988,-151.0,0.00027521,7]
[359329296,1745928645998,-556.35,0.00027521,2]
[359329297,1745928646007,-162.418847,0.00027521,7]
[359329298,1745928646017,-151.0,0.00027521,7]
[359329299,1745928646026,-470.0,0.00027521,2]
[359329300,1745928646038,-544.32,0.00027521,2]
[359329301,1745928646048,-166.195864,0.00027521,7]
[359329302,1745928646057,-470.0,0.00027521,2]
[359329303,1745928646067,-470.0,0.00027521,2]
[359329304,1745928646077,-470.0,0.00027521,2]
[359329306,1745928646086,-151.0,0.00027521,7]
[359329308,1745928646095,-470.0,0.00027521,2]
[359329309,1745928646106,-151.0,0.00027521,7]
[359329310,1745928646115,-470.0,0.00027521,2]
[359329311,1745928646124,-153.988947,0.00027521,7]
[359329312,1745928646133,-470.0,0.00027521,2]
[359329313,1745928646143,-151.0,0.00027521,7]
[359329314,1745928646152,-156.753523,0.00027521,7]
[359329315,1745928646161,-151.0,0.00027521,7]
[359329316,1745928646171,-197.393467,0.00027521,7]
[359329317,1745928646180,-470.0,0.00027521,2]
[359329318,1745928646190,-197.393467,0.00027521,7]
[359329320,1745928646199,-213.649672,0.00027521,7]
[359329322,1745928646208,-470.0,0.00027521,2]
[359329323,1745928646217,-470.0,0.00027521,2]
[359329324,1745928646226,-151.0,0.00027521,7]
[359329325,1745928646235,-151.0,0.00027521,7]
[359329327,1745928646244,-470.0,0.00027521,2]
[359329330,1745928646253,-151.0,0.00027521,7]
[359329331,1745928646262,-470.0,0.00027521,2]
[359329334,1745928646272,-470.0,0.00027521,2]
[359329335,1745928646281,-151.0,0.00027521,7]
[359329336,1745928646290,-470.0,0.00027521,2]
[359329337,1745928646300,-151.0,0.00027521,7]
[359329338,1745928646309,-470.0,0.00027521,2]
[359329339,1745928646318,-470.0,0.00027521,2]
[359329340,1745928646327,-470.0,0.00027521,2]
[359329342,1745928646337,-470.0,0.00027521,2]
[359329344,1745928646346,-470.0,0.00027521,2]
[359329346,1745928646355,-470.0,0.00027521,2]
[359329348,1745928646365,-471.9,0.00027521,2]
[359329350,1745928646374,-470.0,0.00027521,2]
[359329352,1745928646383,-470.0,0.00027521,2]
[359329354,1745928646392,-470.0,0.00027521,2]
[359329356,1745928646401,-767.26,0.00027521,2]
[359329357,1745928646410,-30516.1313678,0.00027522,2]
[359329358,1745928646420,-17081.5153517,0.00027522,2]
[359329359,1745928646430,-151.0,0.00027522,7]
[359329360,1745928646439,-151.0,0.00027522,7]
[359329361,1745928646449,-151.0,0.00027522,7]
[359329362,1745928646459,-151.0,0.00027522,7]
[359329363,1745928646469,-151.0,0.00027522,7]
[359329364,1745928646478,-151.0,0.00027522,7]
[359329365,1745928646487,-151.0,0.00027522,7]
[359329366,1745928646496,-216.388211,0.00027522,7]
[359329367,1745928646506,-151.0,0.00027522,7]
[359329368,1745928646515,-151.0,0.00027522,7]
[359329369,1745928646525,-151.0,0.00027522,7]
[359329370,1745928646534,-151.0,0.00027522,7]
[359329371,1745928646543,-167.203536,0.00027522,7]
[359329372,1745928646552,-186.707806,0.00027522,7]
[359329373,1745928646562,-160.538468,0.00027522,7]
[359329374,1745928646571,-210.162848,0.00027522,7]
[359329375,1745928646581,-151.0,0.00027522,7]
[359329376,1745928646590,-151.0,0.00027522,7]
[359329377,1745928646599,-932.827214,0.00027522,7]
[359329378,1745928646608,-932.827214,0.00027522,7]
[359329379,1745928646617,-151.0,0.00027522,7]
[359329380,1745928646627,-151.0,0.00027522,7]
[359329381,1745928646636,-251.577936,0.00027522,7]
[359329382,1745928646645,-151.0,0.00027522,7]
[359329383,1745928646654,-151.0,0.00027522,7]
[359329384,1745928646663,-151.0,0.00027522,7]
[359329385,1745928646672,-151.0,0.00027522,7]
[359329386,1745928646681,-151.0,0.00027522,7]
[359329387,1745928646690,-197.393467,0.00027522,7]
[359329388,1745928646699,-197.393467,0.00027522,7]
[359329389,1745928646708,-197.393467,0.00027522,7]
[359329390,1745928646717,-197.393467,0.00027522,7]
[359329391,1745928646726,-151.0,0.00027522,7]
[359329392,1745928646735,-151.0,0.00027522,7]
[359329393,1745928646744,-151.0,0.00027522,7]
[359329394,1745928646753,-151.0,0.00027522,7]
[359329395,1745928646762,-151.0,0.00027522,7]
[359329396,1745928646771,-151.0,0.00027522,7]
[359329397,1745928646780,-151.0,0.00027522,7]
[359329398,1745928646789,-151.0,0.00027522,7]
[359329399,1745928646799,-30516.1313678,0.00027522,2]
[359329400,1745928646808,-45550.7076046,0.00027522,2]
[359329401,1745928646817,-483.15395275,0.00027522,2]
[359329402,1745928646826,-342060.60674084,0.00027522,2]
[359329403,1745928647272,-470.0,0.0002752,2]
[359329404,1745928647282,-319.95728589,0.00027522,2]
[359329405,1745928647294,-306.17097768,0.00027522,2]
[359329406,1745928647344,-490.30116499,0.00027522,2]
[359329407,1745928648011,-1091.10331556,0.00027519,2]
[359329408,1745928648526,-368.91631683,0.00026369,2]
[359329409,1745928648538,-452.80368317,0.00026369,2]
[359329410,1745928648548,-1391.33668444,0.00027519,2]
[359329411,1745928648558,-470.0,0.0002752,2]
[359329412,1745928648567,-217.45730924,0.00027522,2]
[359329413,1745928648583,-5867.05989647,0.00027522,2]
[359329414,1745928648594,-3405.55913296,0.00027522,2]
[359329415,1745928648605,-4899.75366782,0.00027522,2]
[359329416,1745928648617,-79976.80689917,0.00027522,2]
[359329417,1745928648682,-18979.26790359,0.00027522,2]
[359329419,1745928674962,180.9864297,0.00026448,4]
[359329421,1745928719632,180.9864297,0.00026448,4]
[359329423,1745928722088,200.0,0.00030056,117]
[359329424,1745928722169,200.0,0.00027373,117]
[359329427,1745928764319,180.9864298,0.00026353,4]
[359329431,1745928809385,180.9864298,0.00026353,4]
[359329432,1745928854429,180.9864298,0.00026353,4]
[359329433,1745928900193,169.8873396,0.00026353,4]
[359329434,1745928902063,551.0,0.00026353,4]
[359329435,1745928944451,169.8873396,0.00026353,4]
[359329437,1745928961485,200.0,0.00028833,117]
[359329438,1745928961569,200.0,0.00026367,117]
[359329439,1745928989411,169.8873396,0.00026353,4]
[359329440,1745929034348,169.8873396,0.00026353,4]
[359329441,1745929079402,169.8873397,0.00026353,4]
[359329442,1745929528301,446.48,0.00011,2]
[359329448,1745929580143,117086.38138446,0.000209,30]
[359329487,1745929832000,-531.40241999,0.0001983,2]
[359329488,1745929832010,-811.84149047,0.000199,2]
[359329489,1745929832019,-488.05,0.00024586,2]
[359329490,1745929832029,-400.0,0.00025308,2]
[359329491,1745929832038,-999.95,0.00026,2]
[359329492,1745929832048,-207.4,0.00026212,2]